[Event "Late-Titled-Tuesday-Blitz-June-18-2024"]
[Site "Chess.com"]
[Date "2024.06.18"]
[Round "10"]
[White "JG1me"]
[Black "ameetghasi100"]
[Result "1-0"]
[WhiteElo "2583"]
[BlackElo "2734"]
[TimeControl "180+1"]
[EndTime "15:56:20 PDT"]
[Termination "JG1me won on time"]

1. e4 {[%clk 0:03:00.9]} 1... g6 {[%clk 0:02:59.9]} 2. d4 {[%clk 0:02:57]} 2...
d6 {[%clk 0:02:56.8]} 3. Nc3 {[%clk 0:02:56.9]} 3... a6 {[%clk 0:02:54.4]} 4.
Be3 {[%clk 0:02:55.1]} 4... b6 {[%clk 0:02:50.7]} 5. Qd2 {[%clk 0:02:51.8]} 5...
Bb7 {[%clk 0:02:49.3]} 6. O-O-O {[%clk 0:02:51.8]} 6... Nd7 {[%clk 0:02:46.6]}
7. h4 {[%clk 0:02:52]} 7... h5 {[%clk 0:02:46.3]} 8. f3 {[%clk 0:02:51]} 8... b5
{[%clk 0:02:43.8]} 9. g4 {[%clk 0:02:50.3]} 9... Ngf6 {[%clk 0:02:42.8]} 10. g5
{[%clk 0:02:47.5]} 10... Nh7 {[%clk 0:02:35.9]} 11. Nh3 {[%clk 0:02:35.2]} 11...
Bg7 {[%clk 0:02:33.4]} 12. Bd3 {[%clk 0:02:22.2]} 12... c5 {[%clk 0:02:32.2]}
13. dxc5 {[%clk 0:02:15.2]} 13... dxc5 {[%clk 0:02:25.5]} 14. Nf4 {[%clk
0:02:13.9]} 14... e6 {[%clk 0:02:25]} 15. Nxb5 {[%clk 0:02:08.2]} 15... axb5
{[%clk 0:02:23.3]} 16. Bxb5 {[%clk 0:02:09]} 16... Nf8 {[%clk 0:02:15.8]} 17.
Bxc5 {[%clk 0:01:37.8]} 17... Rxa2 {[%clk 0:01:56.5]} 18. c3 {[%clk 0:01:37.9]}
18... Bc8 {[%clk 0:01:16.6]} 19. Qd6 {[%clk 0:01:10.2]} 19... Ra5 {[%clk
0:01:12.8]} 20. Bb6 {[%clk 0:01:00.2]} 20... Rxb5 {[%clk 0:00:57.8]} 21. Bxd8
{[%clk 0:00:58.5]} 21... Kxd8 {[%clk 0:00:46.8]} 22. Qc6 {[%clk 0:00:55.5]}
22... Rb7 {[%clk 0:00:41.8]} 23. Nd3 {[%clk 0:00:44.3]} 23... Rc7 {[%clk
0:00:40.6]} 24. Qd6 {[%clk 0:00:42.2]} 24... f6 {[%clk 0:00:18.5]} 25. gxf6
{[%clk 0:00:31.3]} 25... Bxf6 {[%clk 0:00:18]} 26. Ne5 {[%clk 0:00:30.1]} 26...
Bxe5 {[%clk 0:00:13.2]} 27. Qxe5 {[%clk 0:00:31]} 27... Rh7 {[%clk 0:00:08.5]}
28. Qd6 {[%clk 0:00:23.6]} 28... Rf7 {[%clk 0:00:08.2]} 29. f4 {[%clk
0:00:21.2]} 29... Rc4 {[%clk 0:00:06.5]} 30. Rhe1 {[%clk 0:00:16.4]} 30... Ke8
{[%clk 0:00:04.2]} 31. f5 {[%clk 0:00:14.7]} 31... gxf5 {[%clk 0:00:02]} 32.
exf5 {[%clk 0:00:15.6]} 32... e5 {[%clk 0:00:02.8]} 33. f6 {[%clk 0:00:12.7]}
33... Ng6 {[%clk 0:00:02.3]} 34. Qe6+ {[%clk 0:00:09]} 34... Kf8 {[%clk
0:00:02.8]} 35. Qxc4 {[%clk 0:00:09.6]} 35... Nb6 {[%clk 0:00:03.2]} 36. Qc5+
{[%clk 0:00:09.4]} 36... Kg8 {[%clk 0:00:03.7]} 37. Qxb6 {[%clk 0:00:10]} 37...
Bg4 {[%clk 0:00:04.1]} 38. Qd8+ {[%clk 0:00:10]} 38... Kh7 {[%clk 0:00:04.6]}
39. Rd6 {[%clk 0:00:10.1]} 39... e4 {[%clk 0:00:04.9]} 40. Rxe4 {[%clk
0:00:09.8]} 40... Bf5 {[%clk 0:00:05.3]} 41. Re7 {[%clk 0:00:09.9]} 41... Nxe7
{[%clk 0:00:05.8]} 42. fxe7 {[%clk 0:00:10.4]} 42... Bg6 {[%clk 0:00:06.6]} 43.
e8=Q {[%clk 0:00:10.2]} 43... Rf1+ {[%clk 0:00:07.1]} 44. Rd1 {[%clk 0:00:10.2]}
44... Bxe8 {[%clk 0:00:07.8]} 45. Rxf1 {[%clk 0:00:08.2]} 45... Bg6 {[%clk
0:00:08.5]} 46. Qe7+ {[%clk 0:00:08.5]} 1-0

[Event "Late-Titled-Tuesday-Blitz-June-18-2024"]
[Site "Chess.com"]
[Date "2024.06.18"]
[Round "10"]
[White "urano56"]
[Black "zverr1"]
[Result "0-1"]
[WhiteElo "2408"]
[BlackElo "2545"]
[TimeControl "180+1"]
[EndTime "15:56:27 PDT"]
[Termination "zverr1 won by checkmate"]

1. Nf3 {[%clk 0:03:00.9]} 1... g6 {[%clk 0:02:57.7]} 2. c4 {[%clk 0:03:01.2]}
2... Nf6 {[%clk 0:02:54.4]} 3. Nc3 {[%clk 0:03:01.4]} 3... c5 {[%clk 0:02:49.4]}
4. d4 {[%clk 0:02:58.1]} 4... cxd4 {[%clk 0:02:49.5]} 5. Nxd4 {[%clk 0:02:59]}
5... Nc6 {[%clk 0:02:50.4]} 6. e4 {[%clk 0:02:58.4]} 6... Nxd4 {[%clk
0:02:50.7]} 7. Qxd4 {[%clk 0:02:57.9]} 7... d6 {[%clk 0:02:51.6]} 8. Be3 {[%clk
0:02:56.9]} 8... Bg7 {[%clk 0:02:51.5]} 9. f3 {[%clk 0:02:55.7]} 9... O-O {[%clk
0:02:51.9]} 10. Qd2 {[%clk 0:02:55.5]} 10... Be6 {[%clk 0:02:52.6]} 11. Be2
{[%clk 0:02:53.7]} 11... Rc8 {[%clk 0:02:52.1]} 12. b3 {[%clk 0:02:52.7]} 12...
d5 {[%clk 0:02:52.3]} 13. exd5 {[%clk 0:02:34]} 13... Nxd5 {[%clk 0:02:46.5]}
14. Bd4 {[%clk 0:02:34]} 14... Nf4 {[%clk 0:02:30]} 15. Bxg7 {[%clk 0:02:28.7]}
15... Nxg2+ {[%clk 0:02:30.1]} 16. Kd1 {[%clk 0:02:26.5]} 16... Kxg7 {[%clk
0:02:18.5]} 17. Nd5 {[%clk 0:02:11.4]} 17... Bxd5 {[%clk 0:02:08.3]} 18. cxd5
{[%clk 0:02:10.1]} 18... Qb6 {[%clk 0:01:58.1]} 19. Bd3 {[%clk 0:01:17.9]} 19...
Qd4 {[%clk 0:01:42.7]} 20. Rb1 {[%clk 0:01:11.6]} 20... Qxd5 {[%clk 0:00:56.9]}
21. Be4 {[%clk 0:01:02.1]} 21... Qxd2+ {[%clk 0:00:50.3]} 22. Kxd2 {[%clk
0:01:02.3]} 22... Rfd8+ {[%clk 0:00:46]} 23. Ke2 {[%clk 0:01:02.3]} 23... Nf4+
{[%clk 0:00:46.3]} 24. Ke3 {[%clk 0:01:02.4]} 24... Nd5+ {[%clk 0:00:44.2]} 25.
Bxd5 {[%clk 0:01:00]} 25... Rxd5 {[%clk 0:00:43.6]} 26. Rhc1 {[%clk 0:01:00.5]}
26... Rxc1 {[%clk 0:00:39.7]} 27. Rxc1 {[%clk 0:01:00.6]} 27... Rd7 {[%clk
0:00:40.6]} 28. b4 {[%clk 0:00:58.5]} 28... g5 {[%clk 0:00:33.6]} 29. b5 {[%clk
0:00:55.8]} 29... f5 {[%clk 0:00:32.7]} 30. Rc5 {[%clk 0:00:53.1]} 30... Kf6
{[%clk 0:00:31.6]} 31. a4 {[%clk 0:00:53.6]} 31... h5 {[%clk 0:00:26.2]} 32. a5
{[%clk 0:00:52.5]} 32... e5 {[%clk 0:00:25.8]} 33. a6 {[%clk 0:00:44.5]} 33...
bxa6 {[%clk 0:00:25.1]} 34. Rc6+ {[%clk 0:00:44.5]} 34... Ke7 {[%clk 0:00:21.8]}
35. bxa6 {[%clk 0:00:44.9]} 35... Rd4 {[%clk 0:00:11.4]} 36. Rc7+ {[%clk
0:00:44.5]} 36... Kf6 {[%clk 0:00:11.6]} 37. Rxa7 {[%clk 0:00:44.9]} 37... f4+
{[%clk 0:00:12.2]} 38. Ke2 {[%clk 0:00:44.8]} 38... e4 {[%clk 0:00:11.4]} 39.
fxe4 {[%clk 0:00:37]} 39... Rxe4+ {[%clk 0:00:12.3]} 40. Kf2 {[%clk 0:00:37.6]}
40... Ra4 {[%clk 0:00:11.4]} 41. Ra8 {[%clk 0:00:30]} 41... Kg7 {[%clk
0:00:11.2]} 42. Kf3 {[%clk 0:00:25.6]} 42... g4+ {[%clk 0:00:11]} 43. Kf2 {[%clk
0:00:25.4]} 43... Ra2+ {[%clk 0:00:11.3]} 44. Kg1 {[%clk 0:00:22.6]} 44... h4
{[%clk 0:00:11.3]} 45. a7 {[%clk 0:00:19.4]} 45... h3 {[%clk 0:00:08.1]} 46. Kf1
{[%clk 0:00:17.9]} 46... g3 {[%clk 0:00:07.7]} 47. hxg3 {[%clk 0:00:18]} 47...
fxg3 {[%clk 0:00:07.9]} 48. Ke1 {[%clk 0:00:03.1]} 48... g2 {[%clk 0:00:07.9]}
49. Rh8 {[%clk 0:00:02.4]} 49... g1=Q# {[%clk 0:00:06.9]} 0-1

[Event "Late-Titled-Tuesday-Blitz-June-18-2024"]
[Site "Chess.com"]
[Date "2024.06.18"]
[Round "10"]
[White "DryCounty"]
[Black "Byniolus"]
[Result "0-1"]
[WhiteElo "2667"]
[BlackElo "2768"]
[TimeControl "180+1"]
[EndTime "15:56:28 PDT"]
[Termination "Byniolus won on time"]

1. e4 {[%clk 0:03:00.9]} 1... d6 {[%clk 0:02:59.6]} 2. d4 {[%clk 0:03:00.4]}
2... Nf6 {[%clk 0:03:00.5]} 3. Bd3 {[%clk 0:03:00.2]} 3... e5 {[%clk 0:03:00.4]}
4. c3 {[%clk 0:02:59.8]} 4... d5 {[%clk 0:03:00.8]} 5. dxe5 {[%clk 0:02:58.7]}
5... dxe4 {[%clk 0:03:01.2]} 6. exf6 {[%clk 0:02:51.2]} 6... Qxd3 {[%clk
0:02:58.5]} 7. Qxd3 {[%clk 0:02:49.4]} 7... exd3 {[%clk 0:02:59.4]} 8. fxg7
{[%clk 0:02:47.6]} 8... Bxg7 {[%clk 0:03:00.3]} 9. Nf3 {[%clk 0:02:42.4]} 9...
O-O {[%clk 0:02:59.5]} 10. Be3 {[%clk 0:02:40.9]} 10... Bf5 {[%clk 0:02:52.3]}
11. Nbd2 {[%clk 0:02:32.3]} 11... Nd7 {[%clk 0:02:52.3]} 12. O-O {[%clk
0:02:28.8]} 12... c5 {[%clk 0:02:49.3]} 13. Nc4 {[%clk 0:02:26.8]} 13... Be6
{[%clk 0:02:43.2]} 14. Nd6 {[%clk 0:02:25]} 14... b6 {[%clk 0:02:28.5]} 15. Ng5
{[%clk 0:02:20.6]} 15... Rad8 {[%clk 0:02:15.6]} 16. Rfd1 {[%clk 0:02:12.5]}
16... Ne5 {[%clk 0:02:10.9]} 17. Nxe6 {[%clk 0:02:00.1]} 17... fxe6 {[%clk
0:02:11.8]} 18. Ne4 {[%clk 0:01:56.3]} 18... Nc4 {[%clk 0:02:08]} 19. Bg5 {[%clk
0:01:42.6]} 19... Rd5 {[%clk 0:01:54.5]} 20. b3 {[%clk 0:01:30.7]} 20... Nb2
{[%clk 0:01:21.5]} 21. Rd2 {[%clk 0:01:30.1]} 21... Rxg5 {[%clk 0:01:18.2]} 22.
Nxg5 {[%clk 0:01:15.7]} 22... Bxc3 {[%clk 0:01:17.1]} 23. Rxb2 {[%clk
0:01:11.7]} 23... Bxb2 {[%clk 0:01:18]} 24. Rd1 {[%clk 0:01:07.8]} 24... d2
{[%clk 0:00:56.5]} 25. Kf1 {[%clk 0:01:00.7]} 25... b5 {[%clk 0:00:33.1]} 26.
Nxe6 {[%clk 0:00:57.5]} 26... c4 {[%clk 0:00:31.3]} 27. bxc4 {[%clk 0:00:52.5]}
27... bxc4 {[%clk 0:00:32.2]} 28. Rxd2 {[%clk 0:00:41.6]} 28... c3 {[%clk
0:00:28]} 29. Rc2 {[%clk 0:00:35.3]} 29... Rf6 {[%clk 0:00:20.5]} 30. Nc5 {[%clk
0:00:32]} 30... Kf7 {[%clk 0:00:10.9]} 31. Nd3 {[%clk 0:00:29.7]} 31... Rb6
{[%clk 0:00:09.6]} 32. Ke2 {[%clk 0:00:29.2]} 32... Ke6 {[%clk 0:00:09.3]} 33.
Ke3 {[%clk 0:00:28.2]} 33... Kd5 {[%clk 0:00:08.1]} 34. Nf4+ {[%clk 0:00:18.2]}
34... Kc4 {[%clk 0:00:07.8]} 35. g4 {[%clk 0:00:17]} 35... Ra6 {[%clk
0:00:05.5]} 36. h4 {[%clk 0:00:13.8]} 36... Rxa2 {[%clk 0:00:05.7]} 37. g5
{[%clk 0:00:13.9]} 37... Ra1 {[%clk 0:00:05.7]} 38. Ne2 {[%clk 0:00:12.5]} 38...
Kb3 {[%clk 0:00:04.9]} 39. Nd4+ {[%clk 0:00:12.5]} 39... Kc4 {[%clk 0:00:05.5]}
40. Ne2 {[%clk 0:00:12.5]} 40... a5 {[%clk 0:00:05.3]} 41. h5 {[%clk 0:00:12.1]}
41... Rh1 {[%clk 0:00:04.3]} 42. Ng3 {[%clk 0:00:10.7]} 42... Rh4 {[%clk
0:00:03.9]} 43. f4 {[%clk 0:00:08.9]} 43... a4 {[%clk 0:00:03.9]} 44. Nf5 {[%clk
0:00:06.4]} 44... Rh3+ {[%clk 0:00:02.7]} 45. Ke4 {[%clk 0:00:05.6]} 45... a3
{[%clk 0:00:03.2]} 46. Nd6+ {[%clk 0:00:05.7]} 46... Kb3 {[%clk 0:00:03.2]} 47.
Re2 {[%clk 0:00:04.9]} 47... a2 {[%clk 0:00:03.6]} 48. Re1 {[%clk 0:00:05.2]}
48... a1=Q {[%clk 0:00:03.4]} 49. Rxa1 {[%clk 0:00:05.2]} 49... Bxa1 {[%clk
0:00:04.3]} 50. Nb5 {[%clk 0:00:04.1]} 50... c2 {[%clk 0:00:04.8]} 51. Nd4+
{[%clk 0:00:03.8]} 51... Bxd4 {[%clk 0:00:05.1]} 0-1

[Event "Late-Titled-Tuesday-Blitz-June-18-2024"]
[Site "Chess.com"]
[Date "2024.06.18"]
[Round "10"]
[White "KNVB"]
[Black "JunjiCol"]
[Result "1-0"]
[WhiteElo "2763"]
[BlackElo "2360"]
[TimeControl "180+1"]
[EndTime "15:56:34 PDT"]
[Termination "KNVB won by resignation"]

1. e4 {[%clk 0:03:00.9]} 1... e5 {[%clk 0:02:58.1]} 2. Nf3 {[%clk 0:03:00.9]}
2... d5 {[%clk 0:02:58]} 3. Nc3 {[%clk 0:03:01.8]} 3... dxe4 {[%clk 0:02:57.7]}
4. Nxe5 {[%clk 0:03:00.9]} 4... Qd4 {[%clk 0:02:46.3]} 5. f4 {[%clk 0:03:00.1]}
5... Bc5 {[%clk 0:02:42.8]} 6. Qe2 {[%clk 0:03:00]} 6... Nf6 {[%clk 0:02:41.8]}
7. d3 {[%clk 0:02:51.4]} 7... O-O {[%clk 0:02:30.7]} 8. Nxe4 {[%clk 0:02:39.8]}
8... Nxe4 {[%clk 0:02:27.9]} 9. dxe4 {[%clk 0:02:40.7]} 9... Nc6 {[%clk
0:02:24]} 10. c3 {[%clk 0:02:35.4]} 10... Qd6 {[%clk 0:02:18.4]} 11. Nxc6 {[%clk
0:02:23.5]} 11... Qxc6 {[%clk 0:02:14.8]} 12. Be3 {[%clk 0:02:24]} 12... Bg4
{[%clk 0:01:58.6]} 13. Qxg4 {[%clk 0:02:02.2]} 13... Qxe4 {[%clk 0:01:50.8]} 14.
Qf3 {[%clk 0:01:51.1]} 14... Qxf3 {[%clk 0:01:42.2]} 15. gxf3 {[%clk 0:01:52]}
15... Bxe3 {[%clk 0:01:42.3]} 16. Bd3 {[%clk 0:01:40.4]} 16... Rfe8 {[%clk
0:01:39.6]} 17. f5 {[%clk 0:01:09]} 17... Bc1+ {[%clk 0:01:34.1]} 18. Kd1 {[%clk
0:01:09.6]} 18... Bxb2 {[%clk 0:01:34.2]} 19. Rb1 {[%clk 0:01:10.4]} 19... Bxc3
{[%clk 0:01:30.1]} 20. Rxb7 {[%clk 0:01:11.3]} 20... Ba5 {[%clk 0:01:25.7]} 21.
Rb5 {[%clk 0:01:08.6]} 21... Bb6 {[%clk 0:01:23.1]} 22. Kc2 {[%clk 0:01:06.1]}
22... Re3 {[%clk 0:01:17.8]} 23. Be4 {[%clk 0:01:04.2]} 23... Rd8 {[%clk
0:01:16.6]} 24. Rd5 {[%clk 0:00:27.7]} 24... Rxd5 {[%clk 0:00:43.6]} 25. Bxd5
{[%clk 0:00:27.9]} 25... Re2+ {[%clk 0:00:41.5]} 26. Kd3 {[%clk 0:00:28.2]}
26... Re3+ {[%clk 0:00:41.1]} 27. Kd2 {[%clk 0:00:28]} 27... Re5 {[%clk
0:00:39.1]} 28. Be4 {[%clk 0:00:25.6]} 28... Ra5 {[%clk 0:00:39.2]} 29. Bb1
{[%clk 0:00:25.4]} 29... Ra3 {[%clk 0:00:38.5]} 30. Rf1 {[%clk 0:00:22.9]} 30...
g6 {[%clk 0:00:36.5]} 31. fxg6 {[%clk 0:00:22.6]} 31... hxg6 {[%clk 0:00:37.4]}
32. Kc2 {[%clk 0:00:21.8]} 32... Kg7 {[%clk 0:00:36]} 33. Kb2 {[%clk 0:00:22.2]}
33... Re3 {[%clk 0:00:35.8]} 34. Rf2 {[%clk 0:00:04.5]} 34... Re1 {[%clk
0:00:35.4]} 35. Rg2 {[%clk 0:00:01.9]} 35... Rf1 {[%clk 0:00:35.3]} 36. Be4
{[%clk 0:00:01.8]} 36... f5 {[%clk 0:00:35.1]} 37. Bc6 {[%clk 0:00:01.4]} 37...
Kf6 {[%clk 0:00:34.7]} 38. Be8 {[%clk 0:00:01.3]} 38... g5 {[%clk 0:00:34.8]}
39. Bc6 {[%clk 0:00:01.7]} 39... Bd4+ {[%clk 0:00:32.6]} 40. Kc2 {[%clk
0:00:02]} 40... Ra1 {[%clk 0:00:32.3]} 41. Kb3 {[%clk 0:00:02.2]} 41... Rb1+
{[%clk 0:00:32.3]} 42. Kc4 {[%clk 0:00:02.6]} 42... Be5 {[%clk 0:00:32]} 43. Rc2
{[%clk 0:00:02.2]} 43... Rh1 {[%clk 0:00:30.9]} 44. f4 {[%clk 0:00:01.9]} 44...
Bxf4 {[%clk 0:00:30.4]} 45. Bxh1 {[%clk 0:00:02.2]} 45... g4 {[%clk 0:00:29.7]}
46. Rf2 {[%clk 0:00:02.5]} 46... Kg5 {[%clk 0:00:29.7]} 47. Bd5 {[%clk
0:00:02.4]} 47... Be3 {[%clk 0:00:28.7]} 48. Rg2 {[%clk 0:00:02.6]} 48... f4
{[%clk 0:00:28.4]} 49. Bf3 {[%clk 0:00:02.8]} 49... Kh4 {[%clk 0:00:26.1]} 50.
Rxg4+ {[%clk 0:00:03]} 50... Kh3 {[%clk 0:00:26.7]} 51. Rg7 {[%clk 0:00:03.2]}
51... Kxh2 {[%clk 0:00:26.9]} 52. a4 {[%clk 0:00:03.7]} 52... Kh3 {[%clk
0:00:24.7]} 53. Kb5 {[%clk 0:00:03.6]} 53... Bb6 {[%clk 0:00:22.4]} 54. a5
{[%clk 0:00:03.9]} 54... Bf2 {[%clk 0:00:22.4]} 55. Rxc7 {[%clk 0:00:02.9]}
55... Kg3 {[%clk 0:00:22.1]} 56. Be4 {[%clk 0:00:03.3]} 56... Be3 {[%clk
0:00:21.8]} 57. Rf7 {[%clk 0:00:03.3]} 57... Kg4 {[%clk 0:00:21]} 58. a6 {[%clk
0:00:03.8]} 58... Kg3 {[%clk 0:00:21.2]} 59. Kc6 {[%clk 0:00:04.4]} 59... Kg4
{[%clk 0:00:21.2]} 60. Kb7 {[%clk 0:00:05.1]} 60... Kg3 {[%clk 0:00:20.7]} 61.
Ka8 {[%clk 0:00:05.8]} 61... f3 {[%clk 0:00:18.9]} 62. Rxf3+ {[%clk 0:00:05.7]}
1-0

[Event "Late-Titled-Tuesday-Blitz-June-18-2024"]
[Site "Chess.com"]
[Date "2024.06.18"]
[Round "10"]
[White "Bala-Afiada"]
[Black "Navyblue1"]
[Result "1/2-1/2"]
[WhiteElo "2067"]
[BlackElo "2170"]
[TimeControl "180+1"]
[EndTime "15:56:39 PDT"]
[Termination "Game drawn by repetition"]

1. d4 {[%clk 0:02:53.4]} 1... Nf6 {[%clk 0:02:58.4]} 2. c4 {[%clk 0:02:51.8]}
2... g6 {[%clk 0:02:58.7]} 3. Nc3 {[%clk 0:02:51.8]} 3... Bg7 {[%clk 0:02:59.2]}
4. e4 {[%clk 0:02:52]} 4... d6 {[%clk 0:02:59.8]} 5. Nf3 {[%clk 0:02:52.5]} 5...
O-O {[%clk 0:02:59.6]} 6. Be2 {[%clk 0:02:53]} 6... Qe8 {[%clk 0:02:53]} 7. Be3
{[%clk 0:02:53.2]} 7... Ng4 {[%clk 0:02:43.4]} 8. Bg5 {[%clk 0:02:52.2]} 8... e5
{[%clk 0:02:38.4]} 9. d5 {[%clk 0:02:51.9]} 9... f5 {[%clk 0:02:36.6]} 10. h3
{[%clk 0:02:47.5]} 10... Nf6 {[%clk 0:02:35.5]} 11. Qc2 {[%clk 0:02:40.6]} 11...
a5 {[%clk 0:02:29.9]} 12. Nb5 {[%clk 0:02:21.3]} 12... Na6 {[%clk 0:02:27.2]}
13. a3 {[%clk 0:02:20]} 13... Nxe4 {[%clk 0:02:21.4]} 14. h4 {[%clk 0:02:11]}
14... Nxg5 {[%clk 0:02:06.7]} 15. hxg5 {[%clk 0:02:02.6]} 15... Bd7 {[%clk
0:02:02.3]} 16. Nc3 {[%clk 0:01:55.8]} 16... Nc5 {[%clk 0:01:59.8]} 17. O-O-O
{[%clk 0:00:43]} 17... a4 {[%clk 0:01:28.8]} 18. Kb1 {[%clk 0:00:39.2]} 18...
Rb8 {[%clk 0:01:24.3]} 19. Rh2 {[%clk 0:00:36.8]} 19... Rf7 {[%clk 0:01:21.6]}
20. Rdh1 {[%clk 0:00:34.6]} 20... Bh8 {[%clk 0:01:19.4]} 21. Nh4 {[%clk
0:00:32.7]} 21... Re7 {[%clk 0:01:11.4]} 22. g4 {[%clk 0:00:30.5]} 22... fxg4
{[%clk 0:01:00.5]} 23. Nxg6 {[%clk 0:00:30.7]} 23... Qxg6 {[%clk 0:00:57.2]} 24.
Qxg6+ {[%clk 0:00:27.7]} 24... hxg6 {[%clk 0:00:54.4]} 25. Rxh8+ {[%clk
0:00:25.7]} 25... Kf7 {[%clk 0:00:47.5]} 26. R1h6 {[%clk 0:00:24.2]} 26... Bf5+
{[%clk 0:00:40.8]} 27. Kc1 {[%clk 0:00:22.8]} 27... Rxh8 {[%clk 0:00:39.4]} 28.
Rxh8 {[%clk 0:00:23.1]} 28... Kg7 {[%clk 0:00:38.4]} 29. Rb8 {[%clk 0:00:20]}
29... e4 {[%clk 0:00:30.3]} 30. Nb5 {[%clk 0:00:19.3]} 30... Nb3+ {[%clk
0:00:23.5]} 31. Kd1 {[%clk 0:00:18.6]} 31... b6 {[%clk 0:00:20.6]} 32. Rb7
{[%clk 0:00:17.8]} 32... e3 {[%clk 0:00:16]} 33. Rxc7 {[%clk 0:00:17.4]} 33...
Rxc7 {[%clk 0:00:15.6]} 34. Nxc7 {[%clk 0:00:18.3]} 34... exf2 {[%clk
0:00:15.7]} 35. Ne6+ {[%clk 0:00:16.1]} 35... Bxe6 {[%clk 0:00:15.4]} 36. dxe6
{[%clk 0:00:17]} 36... g3 {[%clk 0:00:15]} 37. Bf1 {[%clk 0:00:17.1]} 37... Kf8
{[%clk 0:00:15]} 38. Ke2 {[%clk 0:00:15.5]} 38... Ke7 {[%clk 0:00:15]} 39. Kf3
{[%clk 0:00:16.1]} 39... Kxe6 {[%clk 0:00:14.8]} 40. Kxg3 {[%clk 0:00:16.4]}
40... Kf5 {[%clk 0:00:14.8]} 41. Kxf2 {[%clk 0:00:16.9]} 41... Kxg5 {[%clk
0:00:15.2]} 42. Bd3 {[%clk 0:00:16.5]} 42... Kf6 {[%clk 0:00:14.8]} 43. Ke3
{[%clk 0:00:17.1]} 43... g5 {[%clk 0:00:15.1]} 44. Kf3 {[%clk 0:00:17.5]} 44...
Nc5 {[%clk 0:00:14.1]} 45. Bc2 {[%clk 0:00:16.8]} 45... Ke5 {[%clk 0:00:14]} 46.
Kg4 {[%clk 0:00:17.2]} 46... Kd4 {[%clk 0:00:14.1]} 47. Kxg5 {[%clk 0:00:16.9]}
47... Kxc4 {[%clk 0:00:14.7]} 48. Kf5 {[%clk 0:00:15.8]} 48... d5 {[%clk
0:00:15.1]} 49. Ke5 {[%clk 0:00:15.4]} 49... d4 {[%clk 0:00:15.5]} 50. Kf4
{[%clk 0:00:11.9]} 50... d3 {[%clk 0:00:15.8]} 51. Bd1 {[%clk 0:00:12.5]} 51...
Kd4 {[%clk 0:00:16.1]} 52. Kf3 {[%clk 0:00:12.6]} 52... b5 {[%clk 0:00:16.2]}
53. Kf2 {[%clk 0:00:12.3]} 53... Ne4+ {[%clk 0:00:16.3]} 54. Ke1 {[%clk
0:00:12.5]} 54... Nd6 {[%clk 0:00:16.2]} 55. Kd2 {[%clk 0:00:12.9]} 55... Nc4+
{[%clk 0:00:16.3]} 56. Kc1 {[%clk 0:00:12.7]} 56... Ne3 {[%clk 0:00:16.5]} 57.
Bf3 {[%clk 0:00:11.5]} 57... Nc4 {[%clk 0:00:16.7]} 58. Bd1 {[%clk 0:00:11.6]}
58... Ke3 {[%clk 0:00:16.4]} 59. Bg4 {[%clk 0:00:11.5]} 59... Nd6 {[%clk
0:00:16.2]} 60. Kd1 {[%clk 0:00:09.2]} 60... Nc4 {[%clk 0:00:15.8]} 61. Kc1
{[%clk 0:00:09.2]} 61... Kd4 {[%clk 0:00:14.8]} 62. Kd1 {[%clk 0:00:09.5]} 62...
Ke3 {[%clk 0:00:15.1]} 63. Kc1 {[%clk 0:00:09.8]} 1/2-1/2